[Event "FAI-ch 2020"]
[Site "Runavik"]
[Date "2020.10.23"]
[Round "1.4"]
[White "Apol, Luitjen Akselsson"]
[Black "Simonsen, Hans Kristian"]
[Result "1-0"]
[ECO "B07"]
[WhiteElo "2126"]
[BlackElo "2147"]
[Annotator "RC"]
[PlyCount "53"]
[EventDate "2020.10.23"]
[EventType "tourn"]
[EventCountry "FAI"]
[SourceTitle "playchess.com"]
[Source "ChessBase"]
[SourceQuality "1"]
[TimeControl "40/5400+30:900+30"]

1. e4 {[%emt 0:00:00]} d6 {[%emt 0:00:00]} 2. d4 {[%emt 0:00:34]} Nf6 {[%emt 0:00:00]} 3. Nc3 {[%emt 0:00:25]} g6 {[%emt 0:00:00]} 4. Bg5 {[%emt 0:01:02]} Bg7 {[%emt 0:00:00]} 5. Qd2 {[%emt 0:00:40]} h6 {[%emt 0:00:03]} 6. Bf4 {[%emt 0:00:33]} g5 {[%emt 0:01:06]} 7. Bg3 {[%emt 0:01:06]} Nh5 {[%emt 0:00:08]} 8. O-O-O {[%emt 0:02:11]} Nd7 {[%emt 0:04:30]} 9. e5 {[%emt 0:04:37]} Nxg3 {[%emt 0:02:39]} 10. hxg3 {[%emt 0:00:09]} Nb6 {[%emt 0:00:10]} 11. f4 {[%emt 0:05:10]} Bg4 {[%emt 0:04:25]} 12. Be2 {[%emt 0:09:13]} Bxe2 {[%emt 0:02:59]} 13. Qxe2 {[%emt 0:08:09]} Qd7 {[%emt 0:02:01]} 14. Nf3 {[%emt 0:06:47]} O-O-O {[%emt 0:01:17]} 15. Nd2 {[%emt 0:07:01]} dxe5 16. dxe5 {[%emt 0:01:45]} Qf5 {[%emt 0:06:01]} 17. Qf3 {[%emt 0:03:56]} f6 {[%emt 0:15:57]} 18. e6 {[%emt 0:10:20]} g4 {[%emt 0:09:50]} 19. Qe2 {[%emt 0:03:38]} Qg6 {[%emt 0:04:55]} 20. Nc4 {[%emt 0:03:02]} c6 {[%emt 0:06:04]} 21. Nxb6+ {[%emt 0:04:31]} axb6 {[%emt 0:03:19]} 22. Qe3 {[%emt 0:03:01]} f5 {[%emt 0:00:10]} 23. Na4 {[%emt 0:02:43]} b5 {[%emt 0:01:23]} 24. Nb6+ {[%emt 0:02:01]} Kc7 {[%emt 0:01:19]} 25. Nd7 {[%emt 0:00:28]} Ra8 {[%emt 0:00:58]} 26. Qb6+ {[%emt 0:00:14]} Kc8 {[%emt 0:00:09]} 27. Nc5 {[%emt 0:00:17]} 1-0

[Event "FAI-ch 2020"]
[Site "Runavik"]
[Date "2020.10.24"]
[Round "2.4"]
[White "Jacobsen, Heidrikur T."]
[Black "Gregersen, Hedin"]
[Result "0-1"]
[ECO "A48"]
[WhiteElo "1873"]
[BlackElo "1804"]
[Annotator "NA RC"]
[PlyCount "88"]
[EventDate "2020.10.23"]
[EventType "tourn"]
[EventCountry "FAI"]
[SourceTitle "playchess.com"]
[Source "ChessBase"]
[SourceQuality "1"]
[TimeControl "40/5400+30:900+30"]

{[%evp 8,88,38,41,47,43,34,0,32767,32767,32767,32767,32767,32767,14,32767,32767,32767,32767,32767,32767,38,49,33,89,70,96,32767,32767,32767,-75,-80,32767,-64,12,-25,-29,32767,32767,32767,32767,32767,32767,32767,33,32767,32767,32767,32767,39,30,11,0,0,0,0,32767,-9,32767,32767,32767,32767,114,111,110,133,133,153,173,62,86,0,0,-18,-22,-84,-88,-185,-174,-172,-20,-1299,-1536]} 1. Nf3 {[%emt 0:05:26]} Nf6 {[%emt 0:00:00]} 2. d4 {[%emt 0:00:23]} g6 {[%emt 0:00:00]} 3. c4 {[%emt 0:00:56]} Bg7 {[%emt 0:00:00]} 4. Nc3 {[%emt 0:00:06]} O-O {[%emt 0:00:26]} 5. e4 {[%emt 0:00:05]} d6 {[%emt 0:00:38]} 6. h3 {[%emt 0:00:07]} e5 {[%emt 0:03:11]} 7. dxe5 {[%emt 0:06:47]} dxe5 {[%emt 0:00:08]} 8. Qxd8 {[%emt 0:00:07]} Rxd8 {[%emt 0:00:05]} 9. Bg5 {[%emt 0:00:36]} c6 {[%emt 0:12:54]} 10. Be2 {[%emt 0:03:55]} h6 {[%emt 0:01:28] E92: King's Indian: Classical: 6 Be2 e5: 7 dxe5, 7 Be3 and Petrosian System without 7...Nbd7.} 11. Be3 {[%emt 0:00:23]} Be6 {[%emt 0:03:58]} 12. O-O {[%emt 0:01:39]} Na6 {[%emt 0:04:17]} 13. a3 {[%emt 0:03:15]} Nh5 {[%emt 0:04:16]} 14. Rfd1 {[%emt 0:01:36]} Nf4 {[%emt 0:13:50]} 15. Bf1 {[%emt 0:10:51] [#]} b6 $146 {[%emt 0:00:13]} ({Predecessor:} 15... f5 16. Rxd8+ Rxd8 17. Bxa7 c5 18. Re1 Re8 19. g3 fxe4 20. Nxe4 Nxh3+ 21. Kh2 Bg4 22. Bxh3 Bxf3 23. Nxc5 Nxc5 24. Bxc5 {0-1 (43) Soloveychik,S-Bourmistrov,D Churchill 2000}) 16. b4 {[%emt 0:01:09]} Nc7 {[%emt 0:06:12]} 17. Kh2 {[%emt 0:04:20]} f5 {[%emt 0:04:31]} 18. Bxf4 {[%emt 0:07:44]} exf4 {[%emt 0:02:24]} 19. e5 {[%emt 0:00:27]} Bf7 {[%emt 0:05:30]} 20. Rac1 {[%emt 0:01:55]} Re8 {[%emt 0:03:36]} (20... Ne6 $15) 21. Rd7 {[%emt 0:01:45]} (21. Rd6 $14) 21... Ne6 {[%emt 0:04:57]} 22. Rcd1 {[%emt 0:01:04]} Nf8 {[%emt 0:01:42]} 23. Rc7 {[%emt 0:01:00]} Rxe5 {[%emt 0:01:06]} 24. Rxc6 {[%emt 0:02:51]} Re7 {[%emt 0:03:46]} 25. Nd5 {[%emt 0:01:59]} Rd7 {[%emt 0:03:02]} 26. Re1 {[%emt 0:04:41]} Re8 {[%emt 0:04:55]} 27. Rxe8 {[%emt 0:08:22]} Bxe8 {[%emt 0:00:08]} 28. Rc8 {[%emt 0:01:33]} Bf7 {[%emt 0:02:47]} 29. Be2 {[%emt 0:03:22]} g5 {[%emt 0:03:05]} 30. Bd3 {[%emt 0:02:58]} Be6 {[%emt 0:01:05]} 31. Rc6 {[%emt 0:01:00]} Kf7 {[%emt 0:01:15]} 32. Bc2 {[%emt 0:00:52]} Ng6 {[%emt 0:01:19]} 33. Nc7 {[%emt 0:01:41]} Re7 {[%emt 0:00:16]} 34. Bb3 {[%emt 0:01:54]} Nf8 {[%emt 0:02:30]} 35. Nxe6 {[%emt 0:01:33]} Nxe6 {[%emt 0:00:04]} 36. c5 {[%emt 0:00:14]} bxc5 {[%emt 0:01:22]} 37. bxc5 {[%emt 0:01:42]} Bc3 {[%emt 0:01:31]} 38. Kg1 {[%emt 0:01:54]} ({White should try} 38. Rd6 $18 g4 39. c6 gxf3 40. Bxe6+ Kg7 41. Bxf5 (41. gxf3 Be5 $14)) 38... g4 {[%emt 0:01:19]} 39. hxg4 {[%emt 0:00:59]} fxg4 {[%emt 0:00:05]} 40. Nh2 {[%emt 0:00:00]} h5 {[%emt 0:00:00]} 41. Kf1 {[%emt 0:03:40]} (41. Nf1 $11) 41... Kf6 {[%emt 0:07:13]} 42. Ke2 {[%emt 0:01:30]} (42. Kg1 $17 {keeps fighting.}) 42... Ke5 {[%emt 0:02:55]} 43. Kd3 {[%emt 0:07:39] [#]} Bb2 $2 {[%emt 0:04:37]} (43... Be1 $1 $19 44. Rxe6+ Rxe6) 44. Rd6 $2 {[%emt 0:01:06]} (44. Bxe6 $11 Rxe6 45. Rc7) 44... Nxc5+ $19 {Double Attack} 0-1

[Event "FAI-ch 2020"]
[Site "Runavik"]
[Date "2020.10.24"]
[Round "3.2"]
[White "Danielsen, Andrias"]
[Black "Jacobsen, Heidrikur T."]
[Result "0-1"]
[ECO "B06"]
[WhiteElo "1886"]
[BlackElo "1873"]
[Annotator "NA RC"]
[PlyCount "108"]
[EventDate "2020.10.23"]
[EventType "tourn"]
[EventCountry "FAI"]
[SourceTitle "playchess.com"]
[Source "ChessBase"]
[SourceQuality "1"]
[TimeControl "40/5400+30:900+30"]

{[%evp 8,106,52,73,79,35,39,4,0,-30,0,0,33,-6,-9,-7,-14,32767,32767,32767,32767,32767,32767,-75,-21,-12,-6,-26,32767,32767,-24,-7,0,-27,15,16,32767,32767,32767,32767,32767,32767,32767,8,4,0,0,32767,-25,-34,0,0,0,-140,-141,-137,-140,-140,-69,-97,-104,-98,32767,32767,32767,32767,-100,-101,-76,-78,-68,-98,-92,-235,-258,-249,-228,32767,32767,32767,32767,32767,32767,32767,32767,32767,32767,32767,32767,32767,-29974,-1715,-29973,-2677,-12839,-12326,-12842,32767,32767,32767,-29986]} 1. e4 {[%emt 0:01:25]} g6 {[%emt 0:00:00]} 2. d4 {[%emt 0:03:58]} Bg7 {[%emt 0:00:35]} 3. Nc3 {[%emt 0:02:28]} d6 {[%emt 0:00:34]} 4. f4 {[%emt 0:01:22]} c6 {[%emt 0:02:14]} 5. Nf3 {[%emt 0:02:43]} Bg4 {[%emt 0:00:41]} 6. e5 {[%emt 0:14:29] B06: Modern Defence.} dxe5 {[%emt 0:03:36] [#]} 7. dxe5 $146 {[%emt 0:02:08]} ({Predecessor:} 7. fxe5 Nh6 8. Ne4 Bxf3 9. gxf3 Nf5 10. c3 Qb6 11. Bh3 Na6 12. Qe2 Nc7 13. a4 Ne6 {½-½ (75) Kucera,J (2017)-Kansky,P (2108) Czechia 2011}) 7... Qxd1+ {[%emt 0:00:42]} 8. Kxd1 {[%emt 0:00:15]} Bxf3+ {[%emt 0:00:15]} 9. gxf3 {[%emt 0:00:01]} e6 {[%emt 0:00:42]} 10. Bc4 {[%emt 0:02:28]} Ne7 {[%emt 0:06:31]} 11. Ne4 {[%emt 0:00:42]} Nf5 {[%emt 0:00:44]} 12. c3 {[%emt 0:01:19]} Nd7 {[%emt 0:02:33]} 13. a4 {[%emt 0:02:33]} O-O-O {[%emt 0:04:32]} 14. Ke2 {[%emt 0:05:41]} h6 {[%emt 0:02:27]} 15. Be3 {[%emt 0:12:19]} Kb8 {[%emt 0:07:30]} (15... g5 $5 16. Nd6+ (16. Bxa7 gxf4 17. Nd6+ Nxd6 $15) 16... Nxd6 17. exd6 gxf4 18. Bxf4 Be5 $15) 16. Rad1 {[%emt 0:02:44]} Nb6 {[%emt 0:01:00]} 17. Bxb6 {[%emt 0:04:17]} axb6 {[%emt 0:03:16]} 18. Ng3 {[%emt 0:01:32]} Ne7 {[%emt 0:01:47]} 19. Ne4 {[%emt 0:00:16]} Nf5 {[%emt 0:00:10]} 20. Ng3 {[%emt 0:00:23]} Nxg3+ {[%emt 0:01:36]} (20... Nh4 $1 $15 21. Ke3 Rhe8) 21. hxg3 {[%emt 0:00:08]} Kc7 {[%emt 0:00:16]} 22. Rd3 {[%emt 0:01:40]} Rxd3 {[%emt 0:00:28]} 23. Bxd3 {[%emt 0:00:10]} h5 {[%emt 0:00:48]} 24. Ke3 {[%emt 0:00:57]} Bf8 {[%emt 0:01:03]} 25. g4 {[%emt 0:03:19]} Bc5+ {[%emt 0:01:02]} 26. Ke4 {[%emt 0:00:47]} h4 {[%emt 0:00:16]} 27. Rh3 {[%emt 0:08:45]} Bf2 {[%emt 0:01:50]} 28. f5 {[%emt 0:01:48]} gxf5+ {[%emt 0:00:28]} 29. gxf5 {[%emt 0:00:07]} Bg3 {[%emt 0:02:04]} 30. Bc4 {[%emt 0:02:24]} (30. f4 $11 {keeps the balance.}) 30... Rh5 {[%emt 0:03:41]} 31. fxe6 {[%emt 0:01:24]} Rxe5+ {[%emt 0:00:15]} 32. Kd4 {[%emt 0:00:25]} c5+ {[%emt 0:00:19]} (32... fxe6 $17 33. Kd3 Kd6) 33. Kd3 {[%emt 0:00:53]} fxe6 {[%emt 0:00:17]} 34. Rh1 {[%emt 0:02:12]} Kd6 {[%emt 0:00:44]} 35. Kd2 {[%emt 0:00:43]} Rh5 {[%emt 0:02:09]} 36. Bf1 {[%emt 0:00:10]} Rd5+ {[%emt 0:03:27]} 37. Kc2 {[%emt 0:01:36]} Ke5 {[%emt 0:00:41]} 38. Bh3 {[%emt 0:00:23]} Rd6 {[%emt 0:02:00]} 39. Bg4 {[%emt 0:00:16]} Kf4 {[%emt 0:00:21]} 40. b4 $2 {[%emt 0:00:00]} (40. Rd1 $17 Rxd1 41. Kxd1) 40... c4 {[%emt 0:00:00]} 41. a5 {[%emt 0:08:23]} b5 {[%emt 0:03:18]} 42. Rd1 {[%emt 0:06:12]} Rxd1 {[%emt 0:01:05]} 43. Kxd1 {[%emt 0:00:03]} e5 {[%emt 0:01:49]} 44. Bc8 {[%emt 0:00:50]} Kxf3 {[%emt 0:00:20]} 45. Bxb7+ {[%emt 0:00:26]} e4 {[%emt 0:00:09]} 46. a6 {[%emt 0:00:37]} Bf2 {[%emt 0:00:09]} 47. Bc8 {[%emt 0:03:29]} Ba7 {[%emt 0:05:13]} 48. Ke1 {[%emt 0:01:41]} Ke3 {[%emt 0:01:09]} 49. Bd7 {[%emt 0:01:36]} Kd3 {[%emt 0:00:21]} 50. Bf5 {[%emt 0:00:45]} Kxc3 {[%emt 0:01:21]} 51. Bxe4 {[%emt 0:00:02]} Kxb4 $19 {[%emt 0:00:13]} 52. Kd2 {[%emt 0:01:05]} Kb3 {[%emt 0:00:24]} 53. Bd5 {[%emt 0:01:02]} Kb2 {[%emt 0:00:26]} 54. Kd1 {[%emt 0:01:56]} c3 {[%emt 0:00:17]} 0-1

[Event "FAI-ch 2020"]
[Site "Runavik"]
[Date "2020.10.25"]
[Round "4.4"]
[White "Gregersen, Hedin"]
[Black "Danielsen, Andrias"]
[Result "1-0"]
[ECO "A00"]
[WhiteElo "1804"]
[BlackElo "1886"]
[Annotator "NA RC"]
[PlyCount "79"]
[EventDate "2020.10.23"]
[EventType "tourn"]
[EventCountry "FAI"]
[SourceTitle "playchess.com"]
[Source "ChessBase"]
[SourceQuality "1"]
[TimeControl "40/5400+30:900+30"]

{[%evp 8,79,36,32767,32,32767,26,32767,32767,32767,23,0,54,-11,32767,-32,-34,32767,32767,32767,-46,32767,32767,-42,-31,32767,32767,-91,-101,-92,178,192,179,129,129,100,105,32767,37,32767,32767,32767,36,0,28,0,32767,0,32767,32767,32767,32767,1331,2074,5414,29968,32767,32767,29989,29990,29996,29997,29997,228,926,1107,12837,1128,29972,120,29982,29984,29988,29988]} 1. g3 {[%emt 0:00:00]} g6 {[%emt 0:03:57]} 2. Bg2 {[%emt 0:00:00]} Bg7 {[%emt 0:00:02]} 3. e4 {[%emt 0:00:24]} d6 {[%emt 0:00:18]} 4. d4 {[%emt 0:01:31]} Nf6 {[%emt 0:07:02]} 5. Nc3 {[%emt 0:03:18]} O-O {[%emt 0:05:15]} 6. Nge2 {[%emt 0:00:39]} c6 {[%emt 0:01:58]} 7. O-O {[%emt 0:00:42]} Nbd7 {[%emt 0:02:21]} 8. h3 {[%emt 0:06:22]} e5 {[%emt 0:01:20]} 9. d5 {[%emt 0:05:39] [#] B07: Pirc Defence: Miscellaneous Systems.} c5 $146 {[%emt 0:06:24]} ({Predecessor:} 9... Qc7 10. dxc6 bxc6 11. Be3 Nb6 12. b3 Bb7 13. a4 a5 14. Qd2 Rfd8 15. f4 d5 16. fxe5 Nxe4 17. Nxe4 dxe4 {0-1 (26) Kovacs,B (1831)-Laszlo,I (2158) Dunaujvaros 2013}) 10. f4 {[%emt 0:10:22]} (10. Bg5 $14) 10... exf4 {[%emt 0:02:38]} 11. gxf4 {[%emt 0:04:13]} a6 {[%emt 0:04:15]} 12. a4 {[%emt 0:02:38]} Nh5 {[%emt 0:01:07]} 13. Qe1 {[%emt 0:02:04]} Rb8 {[%emt 0:02:32]} 14. Bf3 {[%emt 0:08:11]} b5 {[%emt 0:03:46]} 15. axb5 {[%emt 0:01:44]} axb5 {[%emt 0:00:11]} 16. Bxh5 {[%emt 0:00:40]} gxh5 {[%emt 0:00:01]} 17. Kh2 {[%emt 0:09:03]} (17. e5 $11) 17... b4 {[%emt 0:02:40]} 18. Nd1 {[%emt 0:02:15] [#]} c4 $2 {[%emt 0:02:30]} (18... Nf6 $1 $17 {and life is bright.} 19. Rg1 Nxe4) 19. Rg1 {[%emt 0:03:29]} Kh8 {[%emt 0:00:22]} 20. Rxg7 {[%emt 0:08:22]} ({Resist} 20. Qg3 $6 Rg8 $16) 20... Kxg7 {[%emt 0:00:19]} 21. Be3 {[%emt 0:01:08]} Rg8 {[%emt 0:09:24]} 22. Ng3 {[%emt 0:01:41]} Nf6 {[%emt 0:01:56]} (22... Kf8 $15 23. Nf5 Nf6) 23. Bd4 {[%emt 0:07:07]} Kf8 {[%emt 0:00:10]} 24. Ne3 {[%emt 0:00:44] [#]} h4 {[%emt 0:02:34]} (24... c3 $1 $15) 25. Ngf5 {[%emt 0:01:13]} Nxe4 {[%emt 0:00:55]} 26. Ra7 {[%emt 0:04:11]} Rg6 {[%emt 0:05:04]} 27. Ne7 {[%emt 0:01:21]} Rg3 {[%emt 0:10:59]} 28. N3f5 {[%emt 0:02:49]} Bxf5 {[%emt 0:03:53]} 29. Nxf5 {[%emt 0:00:09]} Ng5 {[%emt 0:04:49]} (29... Qe8 $142 30. Re7 Qxe7 31. Nxe7 Re8) 30. fxg5 {[%emt 0:04:37]} Qxg5 {[%emt 0:00:01] [#]} 31. Rxf7+ $1 {[%emt 0:04:14] Remove Defender} Kxf7 {[%emt 0:00:39]} 32. Qe6+ {[%emt 0:00:05]} Kf8 {[%emt 0:02:20]} 33. Qxd6+ {[%emt 0:00:06] Double Attack} Kf7 {[%emt 0:00:32]} 34. Qe6+ {[%emt 0:00:13]} Kf8 {[%emt 0:00:14]} 35. Bg7+ $2 {[%emt 0:00:09]} (35. Bc5+ {mates} Qe7 36. Qf6+ {[%mdl 64] Double Attack, Pin} Kg8 37. Nxe7#) 35... Qxg7 {[%emt 0:00:22]} 36. Nxg7 {[%emt 0:00:10]} b3 {[%emt 0:02:44]} 37. c3 {[%emt 0:01:08]} (37. Qf6+ $142 Kg8 {[#]} 38. Nf5 $1 {[%mdl 576] Double Attack}) 37... Ra8 {[%emt 0:00:53] [#]} 38. Qf6+ $2 {[%emt 0:00:36]} (38. Nf5 $1 {mates} Rg6 39. Qe7+ Kg8 40. Qxh4 Rf8 41. Ne7+ {[%mdl 64] Double Attack} Kf7 42. Nxg6 Kxg6 43. d6) 38... Kg8 {[%emt 0:00:23] [#]} 39. Nf5 $1 {[%emt 0:00:28] Double Attack} h5 {[%emt 0:04:10]} 40. Nxg3 {[%emt 0:00:00]} 1-0